Workbook

Sheet Liste des variables
A1: Liste des variables
A3: Paramètre | B3: Description | E3: Unités
A4: K1 fondation | B4: Paramètre de la loi K-Theta | E4: Mpa
A5: K2 fondation | B5: Paramètre de la loi K-Theta | E5: -
A6: Mr | B6: Module réversible | E6: MPa
A7: ϕ fondation | B7: Angle de friction interne de la fondation vierge | E7: °
A8: ρs fondation | B8: Masse volumique des grains solides de la fondation vierge | E8: kg/m3
A9: ρd fondation | B9: Masse volumique sèche de la fondation vierge | E9: kg/m3
A10: wopt fondation | B10: Teneur en eau optimale de la fondation vierge | E10: %
A11: efondation | B11: Indice des vides de la fondation vierge | E11: -
A12: Sropt fondation | B12: Degré de saturation à l'optimum de la fondation vierge | E12: %
A13: ϕ retraitement | B13: Angle de friction interne de la fondation retraitée | E13: °
A14: ρs retraitement | B14: Masse volumique des grains solides de la fondation retraitée | E14: kg/m3
A15: ρd retraitement | B15: Masse volumique sèche de la fondation retraitée | E15: kg/m3
A16: wopt retraitement | B16: Teneur en eau optimale de la fondation retraitée | E16: %
A17: eretraitement | B17: Indice des vides de la fondation retraitée | E17: -
A18: Sropt retraitement | B18: Degré de saturation à l'optimum de la fondation retraitée | E18: %
A19: GBR | B19: Granulats bitumineux recyclés | E19: -

Sheet Paramètres d'entrée
A1: i3CRenforcement - Calcul du renforcement de la couche d'enrobé pour un retraitement en place | O1: Mode d'emploi
A3: Enrobé bitumineux | F3: Charge | K3: %GBR retraitement
A4: Épaisseur | C4: 120 | D4: mm | F4: Vitesse | H4: 100 | I4: km/h | K4: Sensibilité à l'orniérage comparable à : | N4: 0 | O4: %GBR
A5: Classe PG | C5: 58-28 | F5: Poids | H5: 50 | I5: kN | K5: Teneur en GBR dans fondation retraitée : | N5: 30 | O5: %GBR
A6: Module dynamique | C6: =Calculs!H3 -> 2544.264711 | D6: MPa | F6: Rayon | H6: 150 | I6: mm
A7: Coefficient Poisson | C7: =Calculs!J3 -> 0.3435641197
A9: Fondation vierge - Fondation retraitée | F9: Températures mensuelles | K9: Calcul renforcement - Structure équivalente pour la sensibilité à l'orniérage
A10: Épaisseur | C10: 250 | D10: mm | F10: Janvier | H10: -12 | I10: °C | K10: Renforcement | L10: =Calculs!$D$12 -> 32.86011081 | M10: mm
A11: K1 fondation | C11: 15 | F11: Février | H11: -10.1 | I11: °C | K11: d'asphalte =
A12: K2 fondation | C12: 0.7 | F12: Mars | H12: -4.1 | I12: °C | N12: =$C$4+$L$10 -> 152.8601108 | O12: mm
A13: ϕ fondation | C13: 45 | D13: ° | F13: Avril | H13: 3.8 | I13: °C | K13: =$C$4 -> 120 | L13: mm
A14: ρs fondation | C14: 2650 | D14: kg/m3 | F14: Mai | H14: 11.4 | I14: °C | K14: Enrobé bitumineux | N14: Enrobé bitumineux
A15: ρd fondation | C15: 2200 | D15: kg/m3 | F15: Juin | H15: 16.5 | I15: °C
A16: wopt fondation | C16: 6 | D16: % | F16: Juillet | H16: 19.6 | I16: °C | K16: =$C$10 -> 250 | L16: mm | N16: =$C$10 -> 250 | O16: mm
A17: efondation | C17: =C14/C15-1 -> 0.2045454545 | F17: Août | H17: 18.2 | I17: °C | K17: Fondation référence | N17: Fondation retraitée
A18: Sropt fondation | C18: =C16*C14/C17/1000 -> 77.73333333 | D18: % | F18: Septembre | H18: 12.8 | I18: °C | K18: =$N$4 -> 0 | L18: %GBR | N18: =$N$5 -> 30 | O18: %GBR
A19: ϕ retraitement | C19: 40 | D19: ° | F19: Octobre | H19: 6.4 | I19: °C | K19: Mr (MPa)= | L19: =Calculs!$K$12 -> 646.2628051 | N19: Mr (MPa)= | O19: =Calculs!$K$30 -> 478.2365648
A20: ρs retraitement | C20: 2500 | D20: kg/m3 | F20: Novembre | H20: -0.4 | I20: °C
A21: ρd retraitement | C21: 2080 | D21: kg/m3 | F21: Décembre | H21: -8.9 | I21: °C | K21: Référence | N21: Structure renforcée
A22: wopt retraitement | C22: 4 | D22: % | F22: Méthode | G22: Moyenne+2xET | K22: Coûts du renforcement | M22: =3.6*1*($L$10/1000)*2450*60/1000 -> 17.38957064 | N22: $ / voie / m linéaire
A23: eretraitement | C23: =C20/C21-1 -> 0.2019230769 | F23: Température de calcul | H23: =Calculs!AD18 -> 27.34174121 | I23: °C
A24: Sropt retraitement | C24: =C22*C20/1000/C23 -> 49.52380952 | D24: %
F25: =IF(Calculs!L33<Calculs!Q35,Calculs!S35,Calculs!S36) -> Convergence des calculs satisfaisante

Sheet Calculs (hidden)
A1: Température au 1/3 de l'épaisseur de l'enrobé | S1: Valeur de référence pour taux de déformation permanente | AA1: A | AB1: Moy. annuelle des temp. mensuelles
B2: Ta (celsius) | C2: Ta (farenheit) | D2: Tp (farenheit) | E2: Tp (celsius) | F2: Log at | G2: Log fr | H2: Mod. Dyn. (Mpa) | I2: Mod. Dyn. (psi) | J2: Coef. Poisson | K2: heq EB en F | S2: %GBR | T2: ='Paramètres d''entrée'!$N$4 -> 0 | AA2: B | AB2: Moy. des temp. mensuelles > 0°C
B3: ='Paramètres d''entrée'!$H$23 -> 27.34174121 | C3: =9*B3/5+32 -> 81.21513418 | D3: =C3*(1+1/(('Paramètres d''entrée'!$C$4/3/25.4)+4))+6-(34/(('Paramètres d''entrée'!$C$4/3/25.4)+4)) -> 95.68451559 | E3: =(D3-32)*5/9 -> 35.38028644 | F3: =$X$18*(E3-10)+$Y$18*(E3-10)^2 -> -3.365536005 | G3: =LOG($U$20)+F3 -> -1.305536005 | H3: =10^($T$18+$U$18/(1+EXP($V$18+$W$18*G3))) -> 2544.264711 | I3: =H3*145.04 -> 369020.1536 | J3: =0.15+0.35/(1+EXP(-1.63+0.00000384*I3)) -> 0.3435641197 | K3: =$C$40*'Paramètres d''entrée'!$C$4*((Calculs!$H$3/(AVERAGE(K6:K10))*(1-0.35^2)/(1-Calculs!$J$3^2))^0.333333333333333) -> 189.1607799 | AA3: C | AB3: Moyenne+1xET | AD3: A | AE3: B | AJ3: C | AL3: D | AM3: D5 | AN3: D6 | AO3: D7 | AP3: D8 | AQ3: D9 | AR3: D5T | AS3: D6T | AT3: D7T | AU3: D8T | AV3: D9T
S4: Valeur de %GBR à utiliser | AA4: D | AB4: Moyenne+2xET | AC4: ='Paramètres d''entrée'!F10 -> Janvier | AD4: ='Paramètres d''entrée'!H10 -> -12 | AE4: =IF(AD4>0,AD4,"") ->  | AJ4: 0.01 | AK4: =AJ4*AD4 -> -0.12 | AL4: =IF(AD4>0,AD4,"") ->  | AM4: 0.1 | AN4: 0.075 | AO4: 0.05 | AP4: 0.025 | AQ4: 0.01
A5: a2+z2 | B5: Prof ds F ret. | C5: sig1 stat | D5: sig3 stat | E5: sig1 ch | F5: sig3 ch | G5: theta | H5: sigma d | J5: Mr calc | K5: Mr entrée | L5: Résidus | N5: B_ref | O5: sig d cible | P5: delt sigma d | Q5: delta sigma d (%) | S5: %GBR | T5: ='Paramètres d''entrée'!$N$5 -> 30 | AB5: Moy. des temp. mensuelles > 0°C + 1xET | AC5: ='Paramètres d''entrée'!F11 -> Février | AD5: ='Paramètres d''entrée'!H11 -> -10.1 | AJ5: 0.01 | AK5: -0.101 | AM5: 0.225 | AN5: 0.175 | AO5: 0.125 | AP5: 0.1 | AQ5: 0.07
A6: =('Paramètres d''entrée'!$H$6^2+(Calculs!$K$3+Calculs!B6)^2) -> 68364.83963 | B6: ='Paramètres d''entrée'!$C$10/5/2 -> 25 | C6: =('Paramètres d''entrée'!$C$4*Calculs!$C$31/1000)+Calculs!$C$32*Calculs!B6/1000 -> 3.456063 | D6: =$C$33*C6 -> 1.012257416 | E6: =$B$42*(1-((B6+$K$3)^3)/('Paramètres d''entrée'!$H$6^2+(B6+$K$3)^2)^1.5) -> 318.6609476 | F6: =$B$42*(1.7-2.7*(B6+$K$3)/((A6)^0.5)+(($K$3+B6)^3)/(A6)^1.5) -> 26.88081948 | G6: =(C6+E6)+2*(D6+F6) -> 377.9031644 | H6: =(C6+E6)-(D6+F6) -> 294.2239337 | J6: ='Paramètres d''entrée'!$C$11*Calculs!G6^'Paramètres d''entrée'!$C$12 -> 955.5592679 | K6: 955.5559633 | L6: =(J6-K6)^2 -> 1.092042191e-05 | N6: =IF($T$2<50,((0.00002401*H6-0.00100005)*($T$2+56.62312001)+0.05112763),((0.00004345*H6+0.00017833)*($T$2+5.40679463)-0.05625673)) -> 0.3945053282 | O6: =IF($T$5<50,((((N6-0.05112763)/($T$5+56.62312001))+0.00100005)/(0.00002401)),(((N6+0.05625673)/($T$5+5.40679463))-0.00017833)/(0.00004345)) -> 206.7510263 | P6: =H6-O6 -> 87.47290738 | Q6: =100*(H6-O6)/H6 -> 29.73004483 | AB6: Moy. des temp. mensuelles > 0°C + 2xET | AC6: ='Paramètres d''entrée'!F12 -> Mars | AD6: ='Paramètres d''entrée'!H12 -> -4.1 | AJ6: 0.05 | AK6: -0.205 | AM6: 0.35 | AN6: 0.25 | AO6: 0.2 | AP6: 0.16 | AQ6: 0.13
A7: =('Paramètres d''entrée'!$H$6^2+(Calculs!$K$3+Calculs!B7)^2) -> 92280.91762 | B7: =B6+'Paramètres d''entrée'!$C$10/5 -> 75 | C7: =('Paramètres d''entrée'!$C$4*Calculs!$C$31/1000)+Calculs!$C$32*Calculs!B7/1000 -> 4.599909 | D7: =$C$33*C7 -> 1.347282153 | E7: =$B$42*(1-((B7+$K$3)^3)/('Paramètres d''entrée'!$H$6^2+(B7+$K$3)^2)^1.5) -> 242.2248533 | F7: =$B$42*(1.7-2.7*(B7+$K$3)/((A7)^0.5)+(($K$3+B7)^3)/(A7)^1.5) -> 6.848125897 | G7: =(C7+E7)+2*(D7+F7) -> 263.2155784 | H7: =(C7+E7)-(D7+F7) -> 238.6293542 | J7: ='Paramètres d''entrée'!$C$11*Calculs!G7^'Paramètres d''entrée'!$C$12 -> 741.8385051 | K7: 741.8313872 | L7: =(J7-K7)^2 -> 5.066395012e-05 | N7: =IF($T$2<50,((0.00002401*H7-0.00100005)*($T$2+56.62312001)+0.05112763),((0.00004345*H7+0.00017833)*($T$2+5.40679463)-0.05625673)) -> 0.3189233237 | O7: =IF($T$5<50,((((N7-0.05112763)/($T$5+56.62312001))+0.00100005)/(0.00002401)),(((N7+0.05625673)/($T$5+5.40679463))-0.00017833)/(0.00004345)) -> 170.4103987 | P7: =H7-O7 -> 68.2189555 | Q7: =100*(H7-O7)/H7 -> 28.58783058 | S7: Enrobé bitumineux | AB7: Température maximale | AC7: ='Paramètres d''entrée'!F13 -> Avril | AD7: ='Paramètres d''entrée'!H13 -> 3.8 | AE7: 3.8 | AJ7: 0.08 | AK7: 0.304 | AL7: 3.8 | AM7: 0.225 | AN7: 0.25 | AO7: 0.25 | AP7: 0.215 | AQ7: 0.18
A8: =('Paramètres d''entrée'!$H$6^2+(Calculs!$K$3+Calculs!B8)^2) -> 121196.9956 | B8: =B7+'Paramètres d''entrée'!$C$10/5 -> 125 | C8: =('Paramètres d''entrée'!$C$4*Calculs!$C$31/1000)+Calculs!$C$32*Calculs!B8/1000 -> 5.743755 | D8: =$C$33*C8 -> 1.68230689 | E8: =$B$42*(1-((B8+$K$3)^3)/('Paramètres d''entrée'!$H$6^2+(B8+$K$3)^2)^1.5) -> 187.5320152 | F8: =$B$42*(1.7-2.7*(B8+$K$3)/((A8)^0.5)+(($K$3+B8)^3)/(A8)^1.5) -> -1.157337078 | G8: 194.3257098 | H8: 192.7508004 | J8: ='Paramètres d''entrée'!$C$11*Calculs!G8^'Paramètres d''entrée'!$C$12 -> 599.8773206 | K8: 599.8848567 | L8: 5.679238983e-05 | N8: =IF($T$2<50,((0.00002401*H8-0.00100005)*($T$2+56.62312001)+0.05112763),((0.00004345*H8+0.00017833)*($T$2+5.40679463)-0.05625673)) -> 0.2565504612 | O8: =IF($T$5<50,((((N8-0.05112763)/($T$5+56.62312001))+0.00100005)/(0.00002401)),(((N8+0.05625673)/($T$5+5.40679463))-0.00017833)/(0.00004345)) -> 140.4208664 | P8: 52.32993402 | Q8: 27.14900997 | AC8: ='Paramètres d''entrée'!F14 -> Mai | AD8: ='Paramètres d''entrée'!H14 -> 11.4 | AE8: 11.4 | AJ8: 0.11 | AK8: 1.254 | AL8: 11.4 | AM8: 0.1 | AN8: 0.175 | AO8: 0.2 | AP8: 0.215 | AQ8: 0.22
A9: =('Paramètres d''entrée'!$H$6^2+(Calculs!$K$3+Calculs!B9)^2) -> 155113.0736 | B9: =B8+'Paramètres d''entrée'!$C$10/5 -> 175 | C9: =('Paramètres d''entrée'!$C$4*Calculs!$C$31/1000)+Calculs!$C$32*Calculs!B9/1000 -> 6.887601 | D9: =$C$33*C9 -> 2.017331627 | E9: =$B$42*(1-((B9+$K$3)^3)/('Paramètres d''entrée'!$H$6^2+(B9+$K$3)^2)^1.5) -> 148.1844574 | F9: =$B$42*(1.7-2.7*(B9+$K$3)/((A9)^0.5)+(($K$3+B9)^3)/(A9)^1.5) -> -4.24237996 | G9: 150.6219617 | H9: 157.2971067 | J9: ='Paramètres d''entrée'!$C$11*Calculs!G9^'Paramètres d''entrée'!$C$12 -> 501.8952307 | K9: 501.9023755 | L9: 5.104765031e-05 | N9: =IF($T$2<50,((0.00002401*H9-0.00100005)*($T$2+56.62312001)+0.05112763),((0.00004345*H9+0.00017833)*($T$2+5.40679463)-0.05625673)) -> 0.2083504162 | O9: =IF($T$5<50,((((N9-0.05112763)/($T$5+56.62312001))+0.00100005)/(0.00002401)),(((N9+0.05625673)/($T$5+5.40679463))-0.00017833)/(0.00004345)) -> 117.2457747 | P9: 40.05133207 | Q9: 25.4622179 | S9: PG | T9: δ | U9: α | V9: β | W9: γ | X9: a1 | Y9: a2 | AC9: ='Paramètres d''entrée'!F15 -> Juin | AD9: ='Paramètres d''entrée'!H15 -> 16.5 | AE9: 16.5 | AJ9: 0.15 | AK9: 2.475 | AL9: 16.5 | AN9: 0.075 | AO9: 0.125 | AP9: 0.16 | AQ9: 0.18
A10: =('Paramètres d''entrée'!$H$6^2+(Calculs!$K$3+Calculs!B10)^2) -> 194029.1516 | B10: =B9+'Paramètres d''entrée'!$C$10/5 -> 225 | C10: =('Paramètres d''entrée'!$C$4*Calculs!$C$31/1000)+Calculs!$C$32*Calculs!B10/1000 -> 8.031447 | D10: =$C$33*C10 -> 2.352356364 | E10: =$B$42*(1-((B10+$K$3)^3)/('Paramètres d''entrée'!$H$6^2+(B10+$K$3)^2)^1.5) -> 119.4003598 | F10: =$B$42*(1.7-2.7*(B10+$K$3)/((A10)^0.5)+(($K$3+B10)^3)/(A10)^1.5) -> -5.25374655 | G10: 121.6290264 | H10: 130.3331969 | J10: ='Paramètres d''entrée'!$C$11*Calculs!G10^'Paramètres d''entrée'!$C$12 -> 432.1328882 | K10: 432.139443 | L10: 4.296615186e-05 | N10: =IF($T$2<50,((0.00002401*H10-0.00100005)*($T$2+56.62312001)+0.05112763),((0.00004345*H10+0.00017833)*($T$2+5.40679463)-0.05625673)) -> 0.1716924116 | O10: =IF($T$5<50,((((N10-0.05112763)/($T$5+56.62312001))+0.00100005)/(0.00002401)),(((N10+0.05625673)/($T$5+5.40679463))-0.00017833)/(0.00004345)) -> 99.62021811 | P10: 30.71297882 | Q10: 23.56497005 | S10: 58-28 | T10: -0.422 | U10: 4.97 | V10: -1.76 | W10: -0.422 | X10: -0.149 | Y10: 0.000646 | AC10: ='Paramètres d''entrée'!F16 -> Juillet | AD10: ='Paramètres d''entrée'!H16 -> 19.6 | AE10: 19.6 | AJ10: 0.18 | AK10: 3.528 | AL10: 19.6 | AO10: 0.05 | AP10: 0.1 | AQ10: 0.13
L11: =((SUM(L6:L10))/COUNT(L6:L10))^0.5 -> 0.006517523518 | S11: 58-34 | T11: 0.215 | U11: 4.29 | V11: -1.32 | W11: -0.398 | X11: -0.146 | Y11: 0.000795 | AC11: ='Paramètres d''entrée'!F17 -> Août | AD11: ='Paramètres d''entrée'!H17 -> 18.2 | AE11: 18.2 | AJ11: 0.17 | AK11: 3.094 | AL11: 18.2 | AP11: 0.025 | AQ11: 0.07
B12: Renforcement EB | D12: 32.86011081 | K12: =AVERAGE(K6:K10) -> 646.2628051 | S12: 64-28 | T12: -0.072 | U12: 4.63 | V12: -1.68 | W12: -0.324 | X12: -0.151 | Y12: 0.000688 | AC12: ='Paramètres d''entrée'!F18 -> Septembre | AD12: ='Paramètres d''entrée'!H18 -> 12.8 | AE12: 12.8 | AJ12: 0.12 | AK12: 1.536 | AL12: 12.8 | AQ12: 0.01
B13: Nouveau H_EB | D13: =$D$12+'Paramètres d''entrée'!$C$4 -> 152.8601108 | S13: 64-34 | T13: 0.636 | U13: 3.9 | V13: -1.38 | W13: -0.369 | X13: -0.147 | Y13: 0.000656 | AC13: ='Paramètres d''entrée'!F19 -> Octobre | AD13: ='Paramètres d''entrée'!H19 -> 6.4 | AE13: 6.4 | AJ13: 0.06 | AK13: 0.384 | AL13: 6.4
B14: Nv heq EB en F | D14: =$B$43*$D$13*((Calculs!$H$20/(AVERAGE(K24:K28))*(1-0.35^2)/(1-Calculs!$J$20^2))^0.333333333333333) -> 268.7225875 | S14: 70-28 | T14: -0.22 | U14: 4.77 | V14: -1.76 | W14: -0.283 | X14: -0.158 | Y14: 0.000594 | AC14: ='Paramètres d''entrée'!F20 -> Novembre | AD14: ='Paramètres d''entrée'!H20 -> -0.4 | AJ14: 0.04 | AK14: -0.016
AC15: ='Paramètres d''entrée'!F21 -> Décembre | AD15: ='Paramètres d''entrée'!H21 -> -8.9 | AJ15: 0.02 | AK15: -0.178
S16: Valeurs selon classe PG choisie | AD16: =AVERAGE(AD4:AD15) -> 4.433333333 | AE16: =AVERAGE(AE4:AE15) -> 12.67142857 | AF16: =AVERAGE(AD4:AD15)+STDEV(AD4:AD15) -> 15.88753727 | AG16: =AVERAGE(AD4:AD15)+2*(STDEV(AD4:AD15)) -> 27.34174121 | AH16: =MAX(AD4:AD15) -> 19.6 | AJ16: =SUM(AJ4:AJ15) -> 1 | AK16: =SUM(AK4:AK15) -> 11.955 | AL16: =COUNT(AL4:AL15) -> 7 | AM16: =SUM(AM4:AM12) -> 1 | AN16: 1 | AO16: =SUM(AO4:AO12) -> 1 | AP16: =SUM(AP4:AP12) -> 1 | AQ16: =SUM(AQ4:AQ12) -> 1
T17: δ | U17: α | V17: β | W17: γ | X17: a1 | Y17: a2 | AF17: =AVERAGE(AE4:AE15)+STDEV(AE4:AE15) -> 18.62813747 | AG17: =AVERAGE(AE4:AE15)+2*(STDEV(AE4:AE15)) -> 24.58484638
A18: Température au 1/3 de l'épaisseur de l'enrobé | S18: ='Paramètres d''entrée'!C5 -> 58-28 | T18: =IF('Paramètres d''entrée'!$C$5="58-28",Calculs!T10,IF('Paramètres d''entrée'!$C$5="58-34",T11,IF('Paramètres d''entrée'!$C$5="64-28",T12,IF('Paramètres d''entrée'!$C$5="64-34",T13,IF('Paramètres d''entrée'!$C$5="70-28",T14,""))))) -> -0.422 | U18: =IF('Paramètres d''entrée'!$C$5="58-28",Calculs!U10,IF('Paramètres d''entrée'!$C$5="58-34",U11,IF('Paramètres d''entrée'!$C$5="64-28",U12,IF('Paramètres d''entrée'!$C$5="64-34",U13,IF('Paramètres d''entrée'!$C$5="70-28",U14,""))))) -> 4.97 | V18: =IF('Paramètres d''entrée'!$C$5="58-28",Calculs!V10,IF('Paramètres d''entrée'!$C$5="58-34",V11,IF('Paramètres d''entrée'!$C$5="64-28",V12,IF('Paramètres d''entrée'!$C$5="64-34",V13,IF('Paramètres d''entrée'!$C$5="70-28",V14,""))))) -> -1.76 | W18: =IF('Paramètres d''entrée'!$C$5="58-28",Calculs!W10,IF('Paramètres d''entrée'!$C$5="58-34",W11,IF('Paramètres d''entrée'!$C$5="64-28",W12,IF('Paramètres d''entrée'!$C$5="64-34",W13,IF('Paramètres d''entrée'!$C$5="70-28",W14,""))))) -> -0.422 | X18: =IF('Paramètres d''entrée'!$C$5="58-28",Calculs!X10,IF('Paramètres d''entrée'!$C$5="58-34",X11,IF('Paramètres d''entrée'!$C$5="64-28",X12,IF('Paramètres d''entrée'!$C$5="64-34",X13,IF('Paramètres d''entrée'!$C$5="70-28",X14,""))))) -> -0.149 | Y18: =IF('Paramètres d''entrée'!$C$5="58-28",Calculs!Y10,IF('Paramètres d''entrée'!$C$5="58-34",Y11,IF('Paramètres d''entrée'!$C$5="64-28",Y12,IF('Paramètres d''entrée'!$C$5="64-34",Y13,IF('Paramètres d''entrée'!$C$5="70-28",Y14,""))))) -> 0.000646 | AD18: =IF('Paramètres d''entrée'!G22="Moy. annuelle des temp. mensuelles",$AD$16,IF('Paramètres d''entrée'!G22="Moy. des temp. mensuelles > 0°C",Calculs!$AE$16,IF('Paramètres d''entrée'!G22="Moyenne+1xET",$AF$16,IF('Paramètres d''entrée'!G22="Moyenne+2xET",Calculs!$AG$16,IF('Paramètres d''entrée'!G22="Moy. des temp. mensuelles > 0°C + 1xET",$AF$17,IF('Paramètres d''entrée'!G22="Moy. des temp. mensuelles > 0°C + 2xET",$AG$17,IF('Paramètres d''entrée'!G22="Température maximale",Calculs!$AH$16,))))))) -> 27.34174121
B19: Ta (celsius) | C19: Ta (farenheit) | D19: Tp (farenheit) | E19: Tp (celsius) | F19: Log at | G19: Log fr | H19: Mod. Dyn. (Mpa) | I19: Mod. Dyn. (psi) | J19: Coef. Poisson | K19: heq EB en F
B20: ='Paramètres d''entrée'!$H$23 -> 27.34174121 | C20: =9*B20/5+32 -> 81.21513418 | D20: =C20*(1+1/(($D$13/3/25.4)+4))+6-(34/(($D$13/3/25.4)+4)) -> 95.07641188 | E20: =(D20-32)*5/9 -> 35.04245105 | F20: =$X$18*(E20-10)+$Y$18*(E20-10)^2 -> -3.326202873 | G20: =LOG($V$22)+F20 -> -1.271679558 | H20: =10^($T$18+$U$18/(1+EXP($V$18+$W$18*G20))) -> 2618.690926 | I20: =H20*145.04 -> 379814.932 | J20: =0.15+0.35/(1+EXP(-1.63+0.00000384*I20)) -> 0.3399705033 | K20: =$C$40*'Paramètres d''entrée'!$C$4*((Calculs!$H$3/(AVERAGE(K23:K27))*(1-0.35^2)/(1-Calculs!$J$3^2))^0.333333333333333) -> 204.8109773 | S20: Fréquence de l'enrobé | U20: =1/(10^(0.5*'Paramètres d''entrée'!C4/3/1000-0.2-0.94*LOG('Paramètres d''entrée'!H4))) -> 114.8153621
S22: Fréquence de l'enrobé renforcé | V22: =1/(10^(0.5*$D$13/3/1000-0.2-0.94*LOG('Paramètres d''entrée'!$H$4))) -> 113.3765702 | AD22: -12 | AI22: =AVERAGE(AD$4:AD$15) -> 4.433333333 | AJ22: =STDEV(AD$4:AD$15) -> 11.45420394 | AL22: =AI22+AJ22 -> 15.88753727 | AM22: =AI22-AJ22 -> -7.020870606
A23: a2+z2 | B23: Prof ds F ret. | C23: sig1 stat | D23: sig3 stat | E23: sig1 ch | F23: sig3 ch | G23: theta | H23: sigma d | J23: Mr calc | K23: Mr entrée | L23: Résidus | N23: Résidus sigma d | AD23: -10.1 | AI23: =AVERAGE(AD$4:AD$15) -> 4.433333333 | AJ23: =STDEV(AD$4:AD$15) -> 11.45420394 | AL23: =AI23+AJ23 -> 15.88753727 | AM23: =AI23-AJ23 -> -7.020870606
A24: =('Paramètres d''entrée'!$H$6^2+($D$14+Calculs!B24)^2) -> 108772.9584 | B24: ='Paramètres d''entrée'!$C$10/5/2 -> 25 | C24: =($D$13*Calculs!$C$31/1000)+Calculs!$C$36*Calculs!B24/1000 -> 4.204441133 | D24: =$C$37*C24 -> 1.501878467 | E24: =$B$42*(1-((B24+$D$14)^3)/('Paramètres d''entrée'!$H$6^2+(B24+$D$14)^2)^1.5) -> 207.7026025 | F24: =$B$42*(1.7-2.7*(B24+$D$14)/((A24)^0.5)+(($D$14+B24)^3)/(A24)^1.5) -> 1.258784076 | G24: =(C24+E24)+2*(D24+F24) -> 217.4283687 | H24: =(C24+E24)-(D24+F24) -> 209.146381 | J24: ='Paramètres d''entrée'!$C$11*Calculs!G24^'Paramètres d''entrée'!$C$12 -> 648.9520434 | K24: 648.9474739 | L24: =(J24-K24)^2 -> 2.08802091e-05 | N24: =(H24-O6)^2 -> 5.737724219 | P24: 300 | Q24: 400 | AD24: -4.1 | AI24: 4.433333333 | AJ24: 11.45420394 | AL24: 15.88753727 | AM24: -7.020870606
A25: =('Paramètres d''entrée'!$H$6^2+($D$14+Calculs!B25)^2) -> 140645.2171 | B25: =B24+'Paramètres d''entrée'!$C$10/5 -> 75 | C25: =($D$13*Calculs!$C$31/1000)+Calculs!$C$36*Calculs!B25/1000 -> 5.265490733 | D25: =$C$37*C25 -> 1.880898531 | E25: =$B$42*(1-((B25+$D$14)^3)/('Paramètres d''entrée'!$H$6^2+(B25+$D$14)^2)^1.5) -> 162.7593882 | F25: =$B$42*(1.7-2.7*(B25+$D$14)/((A25)^0.5)+(($D$14+B25)^3)/(A25)^1.5) -> -3.339011685 | G25: =(C25+E25)+2*(D25+F25) -> 165.1086526 | H25: =(C25+E25)-(D25+F25) -> 169.4829921 | J25: ='Paramètres d''entrée'!$C$11*Calculs!G25^'Paramètres d''entrée'!$C$12 -> 535.2172995 | K25: 535.2189762 | L25: =(J25-K25)^2 -> 2.811254296e-06 | N25: =(H25-O7)^2 -> 0.8600830728 | P25: 300 | Q25: 400 | AD25: 3.8 | AI25: 4.433333333 | AJ25: 11.45420394 | AL25: 15.88753727 | AM25: -7.020870606
A26: =('Paramètres d''entrée'!$H$6^2+($D$14+Calculs!B26)^2) -> 177517.4759 | B26: =B25+'Paramètres d''entrée'!$C$10/5 -> 125 | C26: =($D$13*Calculs!$C$31/1000)+Calculs!$C$36*Calculs!B26/1000 -> 6.326540333 | D26: 2.259918595 | E26: =$B$42*(1-((B26+$D$14)^3)/('Paramètres d''entrée'!$H$6^2+(B26+$D$14)^2)^1.5) -> 130.127908 | F26: =$B$42*(1.7-2.7*(B26+$D$14)/((A26)^0.5)+(($D$14+B26)^3)/(A26)^1.5) -> -4.992949937 | G26: 130.9883857 | H26: 139.1874797 | J26: ='Paramètres d''entrée'!$C$11*Calculs!G26^'Paramètres d''entrée'!$C$12 -> 455.1496487 | K26: 455.1522748 | L26: 6.896247507e-06 | N26: =(H26-O8)^2 -> 1.52124275 | P26: 300 | Q26: 400 | T26: Module réversible moyen - Référence = | X26: =K12 -> 646.2628051 | Y26: MPa | AD26: 11.4 | AI26: 4.433333333 | AJ26: 11.45420394 | AL26: 15.88753727 | AM26: -7.020870606 | AT26: poisson | AU26: 0.35
A27: =('Paramètres d''entrée'!$H$6^2+($D$14+Calculs!B27)^2) -> 219389.7346 | B27: =B26+'Paramètres d''entrée'!$C$10/5 -> 175 | C27: =($D$13*Calculs!$C$31/1000)+Calculs!$C$36*Calculs!B27/1000 -> 7.387589933 | D27: 2.638938659 | E27: =$B$42*(1-((B27+$D$14)^3)/('Paramètres d''entrée'!$H$6^2+(B27+$D$14)^2)^1.5) -> 105.9769796 | F27: =$B$42*(1.7-2.7*(B27+$D$14)/((A27)^0.5)+(($D$14+B27)^3)/(A27)^1.5) -> -5.393415677 | G27: 107.8556155 | H27: 116.1190465 | J27: ='Paramètres d''entrée'!$C$11*Calculs!G27^'Paramètres d''entrée'!$C$12 -> 397.265812 | K27: 397.2672597 | L27: 2.095993541e-06 | N27: =(H27-O9)^2 -> 1.269516335 | P27: 300 | Q27: 400 | T27: Module réversible moyen - Retraitée = | X27: =K30 -> 478.2365648 | Y27: MPa | AD27: 16.5 | AI27: 4.433333333 | AJ27: 11.45420394 | AL27: 15.88753727 | AM27: -7.020870606 | AT27: a | AU27: ='Paramètres d''entrée'!H6 -> 150
A28: =('Paramètres d''entrée'!$H$6^2+($D$14+Calculs!B28)^2) -> 266261.9934 | B28: =B27+'Paramètres d''entrée'!$C$10/5 -> 225 | C28: =($D$13*Calculs!$C$31/1000)+Calculs!$C$36*Calculs!B28/1000 -> 8.448639533 | D28: 3.017958723 | E28: =$B$42*(1-((B28+$D$14)^3)/('Paramètres d''entrée'!$H$6^2+(B28+$D$14)^2)^1.5) -> 87.73900268 | F28: =$B$42*(1.7-2.7*(B28+$D$14)/((A28)^0.5)+(($D$14+B28)^3)/(A28)^1.5) -> -5.263544499 | G28: 91.69647067 | H28: 98.43322799 | J28: ='Paramètres d''entrée'!$C$11*Calculs!G28^'Paramètres d''entrée'!$C$12 -> 354.5994791 | K28: 354.5968395 | L28: 6.96724494e-06 | N28: =(H28-O10)^2 -> 1.408945544 | P28: 300 | Q28: 400 | AD28: 19.6 | AI28: 4.433333333 | AJ28: 11.45420394 | AL28: 15.88753727 | AM28: -7.020870606
L29: =((SUM(L24:L28))/COUNT(L24:L28))^0.5 -> 0.002816059281 | N29: =((SUM(N24:N28))/COUNT(N24:N28))^0.5 -> 1.469524544 | T29: Température annuelle moyenne (TAM) = | W29: =AD16 -> 4.433333333 | X29: °C | AD29: 18.2 | AI29: 4.433333333 | AJ29: 11.45420394 | AL29: 15.88753727 | AM29: -7.020870606
A30: Fondation | K30: =AVERAGE(K24:K28) -> 478.2365648 | T30: TAM+1xET = | W30: =AL22 -> 15.88753727 | X30: °C | AD30: 12.8 | AI30: 4.433333333 | AJ30: 11.45420394 | AL30: 15.88753727 | AM30: -7.020870606
A31: Poids volumique enrobé | C31: 24.0345 | D31: kN/m3 | T31: TAM-1xET = | W31: =AM22 -> -7.020870606 | X31: °C | AD31: 6.4 | AI31: 4.433333333 | AJ31: 11.45420394 | AL31: 15.88753727 | AM31: -7.020870606
A32: Poids volumique hum MG | C32: =('Paramètres d''entrée'!$C$15*(1+'Paramètres d''entrée'!$C$16/100))*9.81/1000 -> 22.87692 | D32: kN/m3 | L32: Somme résidus | AD32: -0.4 | AI32: 4.433333333 | AJ32: 11.45420394 | AL32: 15.88753727 | AM32: -7.020870606 | AS32: Contrainte cyclique horizontale
A33: 1-sin(phi) | C33: =1-SIN('Paramètres d''entrée'!$C$13*2*PI()/360) -> 0.2928932188 | L33: =L11+L29+N29 -> 1.478858126 | AD33: -8.9 | AI33: 4.433333333 | AJ33: 11.45420394 | AL33: 15.88753727 | AM33: -7.020870606
Q34: 0
A35: Retraitement | Q35: 6 | S35: Convergence des calculs satisfaisante
A36: Poids volumique hum MG | C36: =('Paramètres d''entrée'!$C$21*(1+'Paramètres d''entrée'!$C$22/100))*9.81/1000 -> 21.220992 | D36: kN/m3 | Q36: 6 | S36: Vérifier les données et calculs (faible convergence)
A37: 1-sin(phi) | C37: =1-SIN('Paramètres d''entrée'!$C$19*2*PI()/360) -> 0.3572123903
A40: f1 | C40: 1
A41: heq enrobé en F
A42: sig0 | B42: ='Paramètres d''entrée'!H5/(PI()*('Paramètres d''entrée'!H6/1000)^2) -> 707.3553026
A43: f2 | B43: 1
A45: =MIN($L$33) -> 1.478858126
A46: =COUNT($K$6:$K$10,$K$24:$K$28,$D$12) -> 11
A47: =$D$12>=0 -> TRUE
A48: =$D$12<=150 -> TRUE
A49: =$K$24:$K$28>=0 -> TRUE
A50: =$K$24:$K$28<=1000 -> TRUE
A51: =$K$6:$K$10<=1000 -> TRUE
A52: =$K$6:$K$10>=0 -> TRUE
A53: ={10;30000;0.001;0.01;FALSE;FALSE;TRUE;1;1;1;0.0001;TRUE} -> 10
A54: ={10;30000;1;100;0;FALSE;TRUE;0.075;0;0;FALSE;30} -> 10
